bitfinex-derivatives/quotes_BTCF0:USTF0_20250823
["timestamp","ask_amount","ask_price","bid_price","bid_amount"]
[1755919898354,2.4532096,115680.0,115670.0,0.16432415]
[1755919900756,2.46146086,115680.0,115670.0,0.16432415]
[1755919901653,2.46146086,115680.0,115670.0,0.3196631]
[1755919902954,1.87113196,115680.0,115670.0,0.3196631]
[1755919903152,2.46146086,115680.0,115670.0,0.3196631]
[1755919903354,1.87113196,115680.0,115670.0,0.3196631]
[1755919903558,2.46146086,115680.0,115670.0,0.3196631]
[1755919905660,2.82226086,115680.0,115670.0,0.16432415]
[1755919907757,2.23193196,115680.0,115670.0,0.16432415]
[1755919908059,2.82226086,115680.0,115670.0,0.3196631]
[1755919909664,2.23193196,115680.0,115670.0,0.3196631]
[1755919909862,2.82226086,115680.0,115670.0,0.3196631]
[1755919911356,2.82226086,115680.0,115670.0,0.16432415]
[1755919920566,2.82226086,115680.0,115670.0,0.44186415]
[1755919920770,2.82226086,115680.0,115670.0,0.27732415]
[1755919922872,2.82226086,115680.0,115670.0,0.16432415]
[1755919923271,2.82226086,115680.0,115670.0,0.01432415]
[1755919923670,2.82226086,115680.0,115670.0,0.10077325]
[1755919924072,1.14516995,115670.0,115650.0,0.2344]
[1755919924278,2.23544965,115660.0,115650.0,0.50081]
[1755919924581,2.23544965,115660.0,115650.0,0.5872591]
[1755919924769,2.5306141,115660.0,115650.0,0.5872591]
[1755919924977,2.23544965,115660.0,115650.0,0.5872591]
[1755919925173,2.5306141,115660.0,115650.0,0.4227191]
[1755919925375,2.5306141,115660.0,115650.0,0.1994491]
[1755919925575,2.5316141,115660.0,115650.0,0.2044491]
[1755919926178,2.5316141,115660.0,115650.0,0.2084491]
[1755919926977,2.5316141,115660.0,115650.0,0.0914491]
[1755919927178,2.5326141,115660.0,115650.0,0.0934491]
[1755919927378,2.8934141,115660.0,115650.0,0.1628586]
[1755919935486,2.8924141,115660.0,115650.0,0.1608586]
[1755919935682,2.8924141,115660.0,115650.0,0.1578586]
[1755919935888,2.8924141,115660.0,115650.0,0.1598586]
[1755919936490,0.67703,115650.0,115640.0,0.03906236]
[1755919936790,0.7635402,115640.0,115630.0,0.11308]
[1755919936981,0.7635402,115640.0,115630.0,0.27762]
[1755919936982,2.23498465,115640.0,115630.0,0.27762]
[1755919937183,2.23498465,115640.0,115630.0,0.50089]
[1755919937377,2.23498465,115640.0,115630.0,0.58735405]
[1755919937582,1.9398202,115640.0,115630.0,0.58735405]
[1755919937783,2.23505068,115640.0,115630.0,0.58735405]
[1755919938078,2.23105068,115640.0,115630.0,0.58735405]
[1755919938484,2.23205068,115640.0,115630.0,0.59335405]
[1755919938683,2.22905068,115640.0,115630.0,0.59335405]
[1755919938882,2.25673157,115640.0,115630.0,0.59335405]
[1755919939485,2.25773157,115640.0,115630.0,0.59635405]
[1755919941798,2.25773157,115640.0,115630.0,0.66610086]
[1755919947794,2.25773157,115640.0,115630.0,0.81216086]
[1755919948389,2.25773157,115640.0,115630.0,0.66610086]
[1755919949690,2.24933591,115640.0,115630.0,0.66610086]
[1755919950197,2.24933591,115640.0,115630.0,0.16529086]
[1755919950391,1.95417146,115640.0,115630.0,0.27755086]
[1755919950596,2.24933591,115640.0,115630.0,0.42900086]
[1755919950803,2.24933591,115640.0,115630.0,0.66288086]
[1755919951896,2.25798342,115640.0,115630.0,0.42900086]
[1755919952391,2.55314787,115640.0,115630.0,0.16529086]
[1755919952590,0.4964853,115620.0,115610.0,0.4201024]
[1755919952796,2.1468642,115620.0,115610.0,0.7301824]
[1755919952994,1.5565353,115620.0,115610.0,0.8166614]
[1755919953190,2.1468642,115620.0,115610.0,0.8166614]
[1755919953685,2.1468642,115620.0,115610.0,1.01857911]
[1755919954084,2.1478642,115620.0,115610.0,1.01857911]
[1755919954291,2.1478642,115620.0,115610.0,0.93204671]
[1755919954490,2.1478642,115620.0,115610.0,1.01857951]
[1755919954800,2.1478642,115620.0,115610.0,1.08900976]
[1755919955496,2.1488642,115620.0,115610.0,1.00447696]
[1755919956901,2.1488642,115620.0,115610.0,1.09100976]
[1755919957500,1.5585353,115620.0,115610.0,1.09100976]
[1755919957801,2.1488642,115620.0,115610.0,1.09100976]
[1755919958097,2.1488642,115620.0,115610.0,1.00447696]
[1755919958296,2.1488642,115620.0,115610.0,1.15995213]
[1755919958500,2.1488642,115620.0,115610.0,0.95803442]
[1755919959200,2.1488642,115620.0,115610.0,0.80255925]
[1755919959604,2.1488642,115620.0,115610.0,0.49247925]
[1755919959802,2.1488642,115620.0,115610.0,0.80255925]
[1755919961509,2.1488642,115620.0,115610.0,0.88909205]
[1755919962206,1.3973753,115620.0,115610.0,1.09000976]
[1755919962603,1.85369975,115620.0,115610.0,1.45080976]
[1755919963006,1.5585353,115620.0,115610.0,1.45080976]
[1755919963307,1.85369975,115620.0,115610.0,1.45080976]
[1755919963708,1.5585353,115620.0,115610.0,1.45080976]
[1755919963911,1.85369975,115620.0,115610.0,1.45080976]
[1755919964212,0.79364975,115620.0,115610.0,2.00151178]
[1755919964412,1.60864975,115620.0,115610.0,2.00151178]
[1755919964611,1.60864975,115620.0,115610.0,1.50442962]
[1755919964801,1.60864975,115620.0,115610.0,1.79959407]
[1755919965004,1.76980975,115620.0,115610.0,1.6440565]
[1755919965204,1.85349975,115620.0,115610.0,1.6440565]
[1755919965512,1.11415,115620.0,115610.0,1.8940565]
[1755919965706,1.26520445,115620.0,115610.0,1.8940565]
[1755919966507,0.97004,115620.0,115610.0,1.8940565]
[1755919966713,0.817,115620.0,115610.0,1.8940565]
[1755919967210,1.85345975,115620.0,115610.0,1.34889205]
[1755919967413,1.85345975,115620.0,115610.0,0.88809205]
[1755919968302,1.5582953,115620.0,115610.0,0.88809205]
[1755919968615,1.85345975,115620.0,115610.0,1.04368788]
[1755919969806,1.5582953,115620.0,115610.0,1.04368788]
[1755919970007,2.1486242,115620.0,115610.0,0.89762788]
[1755919970208,2.1486242,115620.0,115610.0,0.81109508]
[1755919970411,2.1486242,115620.0,115610.0,0.57721508]
[1755919971010,2.1486242,115620.0,115610.0,0.42161925]
[1755919971512,2.1486242,115620.0,115610.0,0.58563925]
[1755919971711,1.85345975,115620.0,115610.0,0.66786925]
[1755919972218,1.85345975,115620.0,115610.0,0.82347012]
[1755919972716,1.5582953,115620.0,115610.0,0.82347012]
[1755919972915,1.85345975,115620.0,115610.0,0.82347012]
[1755919973817,1.85345975,115620.0,115610.0,0.66786925]
[1755919974515,1.85345975,115620.0,115610.0,0.75440195]
[1755919974717,1.85345975,115620.0,115610.0,0.90046195]
[1755919978841,1.5582953,115620.0,115610.0,0.90046195]
[1755919979120,1.76693445,115620.0,115610.0,0.90046195]
[1755919979320,1.76693445,115620.0,115610.0,1.26126195]
[1755919979516,1.47177,115620.0,115610.0,1.26126195]
[1755919979722,1.76693445,115620.0,115610.0,1.26126195]
[1755919979915,1.85345975,115620.0,115610.0,1.26126195]
[1755919980115,0.79081445,115620.0,115610.0,1.26126195]
[1755919980319,1.22668,115620.0,115610.0,1.9070264]
[1755919980522,0.002,115620.0,115610.0,1.9064264]
[1755919980715,0.81672,115620.0,115610.0,1.9064264]
[1755919981022,1.01155,115620.0,115610.0,1.9064264]
[1755919981523,1.91865426,115620.0,115610.0,0.71006976]
[1755919981823,1.91865426,115620.0,115610.0,0.61397976]
[1755919982324,1.65669628,115620.0,115610.0,0.61397976]
[1755919983220,1.32832536,115620.0,115610.0,0.61397976]
[1755919983420,1.65669628,115620.0,115610.0,0.77226976]
[1755919984028,1.65669628,115620.0,115610.0,0.52744696]
[1755919984528,2.01749628,115620.0,115610.0,0.52744696]
[1755919985136,2.01749628,115620.0,115610.0,0.32552925]
[1755919986539,2.01749628,115620.0,115610.0,0.48381925]
[1755919987235,1.32832536,115620.0,115610.0,0.48381925]
[1755919987441,1.65669628,115620.0,115610.0,0.74838205]
[1755919988139,1.65669628,115620.0,115610.0,0.66184925]
[1755919988635,2.01749628,115620.0,115610.0,0.66184925]
[1755919988938,1.65669628,115620.0,115610.0,0.66184925]
[1755919989241,1.05652622,115620.0,115610.0,0.66184925]
[1755919989431,1.87108622,115620.0,115610.0,0.66184925]
[1755919990334,2.23188622,115620.0,115610.0,0.74838195]
[1755919990836,1.5427153,115620.0,115610.0,0.74838195]
[1755919991040,1.45619,115620.0,115610.0,1.25671195]
[1755919991534,1.45619,115620.0,115610.0,1.0515656]
[1755919991535,1.43888,115620.0,115610.0,1.0515656]
[1755919991743,1.5254053,115620.0,115610.0,1.0515656]
[1755919992840,1.8862053,115620.0,115610.0,1.0515656]
[1755919993039,1.5254053,115620.0,115610.0,1.0515656]
[1755919993342,1.85377622,115620.0,115610.0,1.0515656]
[1755919993733,1.5254053,115620.0,115610.0,1.0515656]
[1755919994241,1.85377622,115620.0,115610.0,1.0515656]
[1755919994644,0.88070622,115620.0,115610.0,0.89591195]
[1755919994840,1.43876,115620.0,115610.0,1.25671195]
[1755919995044,1.28025,115620.0,115610.0,1.6623625]
[1755919995239,1.15277,115620.0,115610.0,1.5249225]
[1755919995542,1.31128,115620.0,115610.0,1.6249225]
[1755919997546,1.31128,115620.0,115610.0,1.46927195]
[1755919997744,1.31128,115620.0,115610.0,1.62497374]
[1755919998444,1.31128,115620.0,115610.0,1.46927195]
[1755919999042,1.31128,115620.0,115610.0,1.62496721]
[1755919999935,1.31128,115620.0,115610.0,1.46927195]
[1755920001249,1.31116,115620.0,115610.0,1.46927195]
[1755920003941,1.31116,115620.0,115610.0,1.10847195]
[1755920004450,1.3976853,115620.0,115610.0,1.10847195]
[1755920004651,1.3976853,115620.0,115610.0,1.31038966]
[1755920005845,1.31116,115620.0,115610.0,1.67118966]
[1755920006051,1.3976853,115620.0,115610.0,1.67118966]
[1755920006440,1.69316465,115620.0,115610.0,1.96666901]
[1755920006638,1.69316465,115620.0,115610.0,1.11536976]
[1755920006844,1.3976853,115620.0,115610.0,1.01536976]
[1755920007152,2.05396465,115620.0,115610.0,0.61094205]
[1755920007551,2.05396465,115620.0,115610.0,0.76663392]
[1755920008353,2.0868232,115620.0,115610.0,0.76663392]
[1755920008653,1.7260232,115620.0,115610.0,0.76663392]
[1755920010355,1.3976853,115620.0,115610.0,0.76663392]
[1755920010550,1.7260232,115620.0,115610.0,0.76663392]
[1755920012558,1.7260232,115620.0,115610.0,1.26468392]
[1755920012954,1.3976853,115620.0,115610.0,1.26468392]
[1755920013154,1.31116,115620.0,115610.0,1.26468392]
[1755920013553,1.31116,115620.0,115610.0,1.36468392]
[1755920014061,1.31116,115620.0,115610.0,1.20899205]
[1755920014258,1.3976853,115620.0,115610.0,1.20899205]
[1755920015262,1.31116,115620.0,115610.0,1.20899205]
[1755920015461,0.33833,115620.0,115610.0,1.53732995]
[1755920015653,0.79932655,115620.0,115610.0,1.53732995]
[1755920016053,1.07918655,115620.0,115610.0,1.20899205]
[1755920016354,1.07918655,115620.0,115610.0,1.45746609]
[1755920021168,1.07918655,115620.0,115610.0,1.65976153]
[1755920021662,0.20207,115630.0,115620.0,0.0865249]
[1755920021858,1.18435,115630.0,115620.0,0.9534849]
[1755920022356,1.01591,115630.0,115620.0,1.03997886]
[1755920022561,1.01591,115630.0,115620.0,1.62390784]
[1755920022862,1.18435,115630.0,115620.0,1.29556994]
[1755920023062,1.18535,115630.0,115620.0,1.29656994]
[1755920023264,0.11242,115630.0,115620.0,1.14097886]
[1755920023462,0.92626,115630.0,115620.0,1.3432743]
[1755920023964,0.92726,115630.0,115620.0,1.3442743]
[1755920024862,1.0957,115630.0,115620.0,1.3442743]
[1755920025062,0.92726,115630.0,115620.0,1.6726122]
[1755920025262,0.81584,115630.0,115620.0,1.9226122]
[1755920025464,0.81584,115630.0,115620.0,2.07965034]
[1755920025967,0.81584,115630.0,115620.0,1.8773549]
[1755920026171,1.0957,115630.0,115620.0,1.549017]
[1755920026360,0.92726,115630.0,115620.0,1.87732515]
[1755920026955,0.81584,115630.0,115620.0,1.87732515]
[1755920027163,0.81584,115630.0,115620.0,1.92411718]
[1755920027768,0.002,115630.0,115620.0,1.92411718]
[1755920028069,0.81568,115630.0,115620.0,1.92411718]
[1755920028462,1.09554,115630.0,115620.0,1.72182174]
[1755920031173,1.09554,115630.0,115620.0,1.39348384]
[1755920031374,1.09554,115630.0,115620.0,1.72182174]
[1755920032578,1.09554,115630.0,115620.0,1.92369728]
[1755920033778,1.09554,115630.0,115620.0,1.72182174]
[1755920034472,0.37251,115630.0,115620.0,1.72182174]
[1755920034669,1.18599,115630.0,115620.0,1.92366186]
[1755920035872,0.37251,115630.0,115620.0,1.92366186]
[1755920036076,1.18595,115630.0,115620.0,1.92366186]
[1755920039079,1.18595,115630.0,115620.0,1.67366186]
[1755920040076,1.18595,115630.0,115620.0,1.34532396]
[1755920040574,1.18595,115630.0,115620.0,1.47182174]
[1755920040778,1.18579,115630.0,115620.0,1.47182174]
[1755920041170,1.18379,115630.0,115620.0,1.47182174]
[1755920041371,1.17173257,115630.0,115620.0,1.47182174]
[1755920042287,1.17173257,115630.0,115620.0,1.73418876]
[1755920042689,1.17173257,115630.0,115620.0,1.9826628]
[1755920043288,1.17173257,115630.0,115620.0,1.39195788]
[1755920043586,1.17173257,115630.0,115620.0,1.9826628]
[1755920043982,1.02880603,115640.0,115630.0,0.4227]
[1755920044285,0.59271246,115650.0,115640.0,0.2925502]
[1755920044286,0.3775,115650.0,115640.0,0.2925502]
[1755920044582,1.1907,115650.0,115640.0,1.3675855]
[1755920044788,1.0287,115650.0,115640.0,1.3675855]
[1755920045187,1.1907,115650.0,115640.0,1.45405702]
[1755920045374,1.1907,115650.0,115640.0,1.15870456]
[1755920045579,1.1937,115650.0,115640.0,1.15970456]
[1755920045791,1.1937,115650.0,115640.0,1.45505702]
[1755920046488,0.8162,115650.0,115640.0,1.45505702]
[1755920046690,0.8182,115650.0,115640.0,1.45605702]
[1755920047192,0.93411,115650.0,115640.0,1.16070456]
[1755920047393,1.09611,115650.0,115640.0,1.45605702]
[1755920047886,1.09611,115650.0,115640.0,1.16070456]
[1755920048188,1.09611,115650.0,115640.0,1.45605702]
[1755920048406,1.09611,115650.0,115640.0,1.16070456]
[1755920048699,1.23147,115650.0,115640.0,1.16070456]
[1755920049609,1.23147,115650.0,115640.0,1.69068981]
[1755920050401,1.23147,115650.0,115640.0,1.84600152]
[1755920050698,1.23147,115650.0,115640.0,1.64411622]
[1755920050908,1.09611,115650.0,115640.0,1.64411622]
[1755920052504,1.09611,115650.0,115640.0,1.31601627]
[1755920052704,1.09611,115650.0,115640.0,1.64411622]
[1755920054402,1.09611,115650.0,115640.0,1.31601627]
[1755920054800,1.09611,115650.0,115640.0,1.64411622]
[1755920054996,1.23147,115650.0,115640.0,1.14643343]
[1755920055197,1.23147,115650.0,115640.0,0.69182343]
[1755920055198,1.48147,115650.0,115640.0,0.69182343]
[1755920055401,1.48147,115650.0,115640.0,0.33029343]
[1755920055600,1.48147,115650.0,115640.0,0.68563343]
[1755920055909,1.48147,115650.0,115640.0,1.20760343]
[1755920056506,1.89687285,115650.0,115640.0,0.24378323]
[1755920056803,1.89687285,115650.0,115640.0,0.29035682]
[1755920060711,1.89687285,115650.0,115640.0,0.37686702]
[1755920061206,1.89687285,115650.0,115640.0,0.52616702]
[1755920061699,1.89607285,115650.0,115640.0,0.43651172]
[1755920061905,1.5679729,115650.0,115640.0,0.69149172]
[1755920062108,1.89607285,115650.0,115640.0,0.69149172]
[1755920062912,1.5679729,115650.0,115640.0,0.69149172]
[1755920063106,1.33074,115650.0,115640.0,0.69149172]
[1755920063312,1.4172427,115650.0,115640.0,0.79149172]
[1755920064211,1.74534265,115650.0,115640.0,0.79149172]
[1755920065310,1.74534265,115650.0,115640.0,0.99337702]
[1755920066512,1.74534265,115650.0,115640.0,0.79149172]
[1755920068013,1.74534265,115650.0,115640.0,0.63032172]
[1755920068710,1.74534265,115650.0,115640.0,0.95187136]
[1755920070014,1.74534265,115650.0,115640.0,0.85187136]
[1755920070313,1.74534265,115650.0,115640.0,0.68577136]
[1755920071013,1.74534265,115650.0,115640.0,0.53032172]
[1755920073117,2.10614265,115650.0,115640.0,0.53032172]
[1755920073319,2.10614265,115650.0,115640.0,0.69642172]
[1755920073517,2.10614265,115650.0,115640.0,0.53032172]
[1755920075021,2.10614265,115650.0,115640.0,0.73220702]
[1755920077628,1.7780427,115650.0,115640.0,0.53346682]
[1755920077814,2.10614265,115650.0,115640.0,0.43965682]
[1755920078014,2.10614265,115650.0,115640.0,0.59512198]
[1755920078325,2.10614265,115650.0,115640.0,0.71042198]
[1755920078724,2.10614265,115650.0,115640.0,0.50853668]
[1755920078924,2.10614265,115650.0,115640.0,0.35307152]
[1755920079426,2.10614265,115650.0,115640.0,0.08847152]
[1755920079627,2.10614265,115650.0,115640.0,0.23221152]
[1755920079924,2.10614265,115650.0,115640.0,0.34751152]
[1755920082928,2.10614265,115650.0,115640.0,0.50297668]
[1755920083721,2.10614265,115650.0,115640.0,0.34751152]
[1755920084330,2.36879882,115650.0,115640.0,0.34751152]
[1755920084527,2.36879882,115650.0,115640.0,0.50297668]
[1755920085720,2.36879882,115650.0,115640.0,0.76164668]
[1755920086034,2.36879882,115650.0,115640.0,0.80806682]
[1755920088325,2.36879882,115650.0,115640.0,0.64196682]
[1755920089029,1.7780427,115650.0,115640.0,0.80806682]
[1755920089228,2.36879882,115650.0,115640.0,0.80806682]
[1755920092029,1.7780427,115650.0,115640.0,0.60618152]
[1755920092328,2.36879882,115650.0,115640.0,0.60618152]
[1755920094423,1.7780427,115650.0,115640.0,0.69269182]
[1755920094623,2.36879882,115650.0,115640.0,0.69269182]
[1755920095125,2.07342076,115650.0,115640.0,0.69269182]
[1755920095625,1.62611806,115650.0,115640.0,0.69269182]
[1755920096140,1.71262086,115650.0,115640.0,0.69269182]
[1755920097140,1.4172428,115650.0,115640.0,0.69269182]
[1755920097438,1.71262086,115650.0,115640.0,0.69269182]
[1755920099629,2.07342086,115650.0,115640.0,0.69269182]
[1755920099830,1.71262086,115650.0,115640.0,0.69269182]
[1755920100135,1.71262086,115650.0,115640.0,0.98806988]
[1755920100136,1.33074,115650.0,115640.0,0.98806988]
[1755920100327,0.12091,115650.0,115640.0,1.80075518]
[1755920100531,0.93335,115650.0,115640.0,1.90115518]
[1755920100740,0.91929369,115650.0,115640.0,1.90115518]
[1755920101339,0.91929369,115650.0,115640.0,1.85425116]
[1755920101638,1.08843369,115650.0,115640.0,1.94774392]
[1755920102641,1.08843369,115650.0,115640.0,1.94734392]
[1755920103542,1.08843369,115650.0,115640.0,1.69886988]
[1755920104340,1.08843369,115650.0,115640.0,1.40349182]
[1755920106149,1.08843369,115650.0,115640.0,1.30349182]
[1755920108646,1.23014369,115650.0,115640.0,1.30349182]
[1755920108842,1.31664629,115650.0,115640.0,0.52659162]
[1755920109051,1.23014369,115650.0,115640.0,0.70106162]
[1755920109348,1.23014369,115650.0,115640.0,1.06186162]
[1755920109848,1.31664639,115650.0,115640.0,1.06186162]
[1755920110041,1.31664639,115650.0,115640.0,0.70106162]
[1755920110439,1.31664639,115650.0,115640.0,0.52659162]
[1755920110848,1.31664639,115650.0,115640.0,0.70106162]
[1755920112252,1.31664639,115650.0,115640.0,0.90316812]
[1755920113350,1.23014369,115650.0,115640.0,1.26396812]
[1755920114044,1.31664639,115650.0,115640.0,1.17745802]
[1755920114445,1.31664639,115650.0,115640.0,1.26396822]
[1755920117948,1.23014369,115650.0,115640.0,1.26396822]
[1755920118454,1.08843369,115650.0,115640.0,1.16186172]
[1755920119758,1.00986369,115650.0,115640.0,1.16186172]
[1755920119948,0.91929369,115650.0,115640.0,1.48996321]
[1755920120155,0.91929369,115650.0,115640.0,1.16186172]
[1755920120651,0.37607,115660.0,115650.0,0.6155627]
[1755920120853,1.18859,115660.0,115650.0,1.17849732]
[1755920121356,1.18859,115660.0,115650.0,1.26496884]
[1755920121759,1.19159,115660.0,115650.0,1.26596884]
[1755920122057,1.4197953,115660.0,115650.0,1.26596884]
[1755920122959,1.4197953,115660.0,115650.0,1.17946614]
[1755920123346,1.4197953,115660.0,115650.0,1.00499614]
[1755920123347,1.74789679,115660.0,115650.0,1.00499614]
[1755920123552,2.10869679,115660.0,115650.0,0.64419614]
[1755920123753,2.11069679,115660.0,115650.0,0.64519614]
[1755920124454,2.11069679,115660.0,115650.0,0.81966614]
[1755920125761,2.11069679,115660.0,115650.0,0.64519614]
[1755920126558,2.11069679,115660.0,115650.0,0.81966614]
[1755920126856,2.11069679,115660.0,115650.0,0.90616884]
[1755920127559,2.11069679,115660.0,115650.0,0.64519614]
[1755920127754,2.11069679,115660.0,115650.0,0.43586614]
[1755920127950,2.11069679,115660.0,115650.0,0.23373152]
[1755920128150,2.11069679,115660.0,115650.0,0.33906152]
[1755920128354,2.07792828,115660.0,115650.0,0.59160152]
[1755920128959,2.07792828,115660.0,115650.0,0.67810422]
[1755920129658,1.7825953,115660.0,115650.0,0.67810422]
[1755920129847,2.07792828,115660.0,115650.0,0.67810422]
[1755920130051,2.07792828,115660.0,115650.0,0.22451152]
[1755920130453,2.07792828,115660.0,115650.0,0.32984152]
[1755920133565,2.07792828,115660.0,115650.0,0.41634422]
[1755920133864,1.7825953,115660.0,115650.0,0.57737422]
[1755920134064,2.07792828,115660.0,115650.0,0.57737422]
[1755920134252,2.07792828,115660.0,115650.0,0.73294243]
[1755920134455,2.07792828,115660.0,115650.0,0.82445243]
[1755920135161,1.7825953,115660.0,115650.0,0.82445243]
[1755920135362,2.07792828,115660.0,115650.0,0.82445243]
[1755920135562,2.07792828,115660.0,115650.0,0.73794973]
[1755920135965,2.07792828,115660.0,115650.0,0.57691973]
[1755920136862,1.7825953,115660.0,115650.0,0.57691973]
[1755920137071,1.7825953,115660.0,115650.0,0.73794973]
[1755920137364,2.07792828,115660.0,115650.0,0.73794973]
[1755920137862,1.7825953,115660.0,115650.0,0.73794973]
[1755920138065,2.07792828,115660.0,115650.0,0.73794973]
[1755920138969,1.7825953,115660.0,115650.0,0.73794973]
[1755920139174,2.07792828,115660.0,115650.0,0.73794973]
[1755920140669,2.07792828,115660.0,115650.0,0.57691973]
[1755920141369,2.07792828,115660.0,115650.0,0.73794973]
[1755920141772,2.07792828,115660.0,115650.0,0.57691973]
[1755920141962,1.7825953,115660.0,115650.0,0.57691973]
[1755920142161,2.07792828,115660.0,115650.0,0.73794973]
[1755920142467,2.07792828,115660.0,115650.0,0.57691973]
[1755920143768,2.07792828,115660.0,115650.0,0.62348614]
[1755920144170,2.07792828,115660.0,115650.0,0.78451614]
[1755920145068,2.07792828,115660.0,115650.0,0.58238152]
[1755920146470,2.07792828,115660.0,115650.0,0.73798779]
[1755920146772,2.07792828,115660.0,115650.0,0.82449049]
[1755920150877,1.7825953,115660.0,115650.0,0.82449049]
[1755920151077,2.07792828,115660.0,115650.0,0.82449049]
[1755920151676,1.7825953,115660.0,115650.0,0.82449049]
[1755920151879,2.07792828,115660.0,115650.0,0.82449049]
[1755920152781,1.26540828,115660.0,115650.0,0.82449049]
[1755920152972,2.07952828,115660.0,115650.0,0.82449049]
[1755920153776,2.07952828,115660.0,115650.0,0.66888422]
[1755920156176,2.07952828,115660.0,115650.0,0.87101884]
[1755920156579,2.37486126,115660.0,115650.0,0.29060614]
[1755920157482,2.07952828,115660.0,115650.0,0.29060614]
[1755920157776,2.37486126,115660.0,115650.0,0.29060614]
[1755920158582,2.37486126,115660.0,115650.0,0.42711614]
[1755920158780,2.07952828,115660.0,115650.0,0.42711614]
[1755920159171,2.07952828,115660.0,115650.0,0.61906884]
[1755920160182,2.37486126,115660.0,115650.0,0.51361884]
[1755920160381,2.07952828,115660.0,115650.0,0.51361884]
[1755920160784,1.7841953,115660.0,115650.0,0.87433884]
[1755920160984,2.07952828,115660.0,115650.0,0.87433884]
[1755920168580,2.07952828,115660.0,115650.0,0.67220422]
[1755920169883,1.26540828,115660.0,115650.0,0.9675372]
[1755920170084,1.93633828,115660.0,115650.0,0.67220422]
[1755920170790,2.07682828,115660.0,115650.0,0.67220422]
[1755920173992,2.07682828,115660.0,115650.0,0.50907422]
[1755920174392,2.07682828,115660.0,115650.0,0.67220422]
[1755920176388,1.7814953,115660.0,115650.0,0.67220422]
[1755920176587,2.07682828,115660.0,115650.0,0.67220422]
[1755920182192,2.07682828,115660.0,115650.0,0.82789214]
[1755920183095,2.07682828,115660.0,115650.0,0.67220422]
[1755920183901,2.07682828,115660.0,115650.0,0.58570152]
[1755920184094,2.07682828,115660.0,115650.0,0.74135294]
[1755920186199,2.07682828,115660.0,115650.0,0.48608294]
[1755920186401,2.07682828,115660.0,115650.0,0.24412294]
[1755920186603,2.07682828,115660.0,115650.0,0.08847152]
[1755920187403,2.37216126,115660.0,115650.0,0.08847152]
[1755920189904,1.7814953,115660.0,115650.0,0.08847152]
[1755920190098,2.07682828,115660.0,115650.0,0.08847152]
[1755920192302,1.7814953,115660.0,115650.0,0.08847152]
[1755920192503,2.07682828,115660.0,115650.0,0.08847152]
[1755920195604,2.64124171,115660.0,115650.0,0.08847152]
[1755920196002,0.5639804,115640.0,115630.0,0.50387142]
[1755920196207,2.03683338,115640.0,115630.0,0.2575]
[1755920196402,2.03683338,115640.0,115630.0,0.45963462]
[1755920196603,2.03683338,115640.0,115630.0,0.54609867]
[1755920197309,2.03683338,115640.0,115630.0,0.28859867]
[1755920197503,2.03783338,115640.0,115630.0,0.08746405]
[1755920198208,2.03783338,115640.0,115630.0,0.24395679]
[1755920199102,2.03783338,115640.0,115630.0,0.08846405]
[1755920207515,2.39863338,115640.0,115630.0,0.08846405]
[1755920207915,2.39863338,115640.0,115630.0,0.23798405]
[1755920208117,2.39863338,115640.0,115630.0,0.34596405]
[1755920211719,2.1033004,115640.0,115630.0,0.34596405]
[1755920211917,2.39863338,115640.0,115630.0,0.34596405]
[1755920214923,2.39863338,115640.0,115630.0,0.50703405]
[1755920215117,2.39483338,115640.0,115630.0,0.43668405]
[1755920215322,2.39483338,115640.0,115630.0,0.59775405]
[1755920220121,2.0995004,115640.0,115630.0,0.59775405]
[1755920220324,1.0052004,115640.0,115630.0,0.92657195]
[1755920220627,2.11345338,115640.0,115630.0,1.22190493]
[1755920221024,2.24778338,115640.0,115630.0,0.92657195]
[1755920221528,2.38949338,115640.0,115630.0,0.43668405]
[1755920221720,2.38949338,115640.0,115630.0,0.23798405]
[1755920222817,2.38949338,115640.0,115630.0,0.08846405]
[1755920227419,2.38949338,115640.0,115630.0,0.33620405]
[1755920228423,2.38949338,115640.0,115630.0,0.08846405]
[1755920232336,2.68482636,115640.0,115630.0,0.08846405]
[1755920232727,2.38949338,115640.0,115630.0,0.08846405]
[1755920232933,2.68482636,115640.0,115630.0,0.08846405]
[1755920233834,2.68482636,115640.0,115630.0,0.24395679]
[1755920236240,2.0941604,115640.0,115630.0,0.08846405]
[1755920236438,2.68482636,115640.0,115630.0,0.08846405]
[1755920237840,2.38949338,115640.0,115630.0,0.08846405]
[1755920238137,2.68482636,115640.0,115630.0,0.08846405]
[1755920238630,2.93482636,115640.0,115630.0,0.002]
[1755920238840,0.5666179,115630.0,115620.0,0.30010274]
[1755920239035,1.51808386,115630.0,115620.0,0.30010274]
[1755920239237,1.51808386,115630.0,115620.0,0.38658174]
[1755920239433,1.51808386,115630.0,115620.0,0.231089]
[1755920239633,1.51808386,115630.0,115620.0,0.334219]
[1755920240135,0.9274179,115630.0,115620.0,0.334219]
[1755920240440,1.51808386,115630.0,115620.0,0.48971174]
[1755920240740,1.51908386,115630.0,115620.0,0.64408174]
[1755920241342,1.52008386,115630.0,115620.0,0.64508174]
[1755920241540,1.52008386,115630.0,115620.0,0.74245174]
[1755920244344,1.52008386,115630.0,115620.0,0.58908174]
[1755920246141,1.52008386,115630.0,115620.0,0.74245174]
[1755920246344,1.52008386,115630.0,115620.0,0.58908174]
[1755920249157,0.9294179,115630.0,115620.0,0.73894174]
[1755920249359,1.52008386,115630.0,115620.0,0.73894174]
[1755920249657,1.52008386,115630.0,115620.0,0.58908174]
[1755920250558,1.52008386,115630.0,115620.0,0.73894174]
[1755920254254,1.52008386,115630.0,115620.0,0.58908174]
[1755920254860,1.52008386,115630.0,115620.0,0.583449]
[1755920255360,1.52008386,115630.0,115620.0,0.433589]
[1755920255562,1.52008386,115630.0,115620.0,0.583449]
[1755920258163,1.22475088,115630.0,115620.0,0.433589]
[1755920258356,1.52008386,115630.0,115620.0,0.436809]
[1755920258664,0.9294179,115630.0,115620.0,0.586669]
[1755920258867,1.52008386,115630.0,115620.0,0.74216174]
[1755920259768,1.52008386,115630.0,115620.0,0.586669]
[1755920260364,1.52208386,115630.0,115620.0,0.233089]
[1755920260865,1.52208386,115630.0,115620.0,0.339439]
[1755920261460,1.52208386,115630.0,115620.0,0.582599]
[1755920262363,1.52208386,115630.0,115620.0,0.088479]
[1755920262567,1.52208386,115630.0,115620.0,0.573349]
[1755920266964,1.52208386,115630.0,115620.0,0.72884174]
[1755920268466,1.52208386,115630.0,115620.0,0.57898174]
[1755920269468,1.52208386,115630.0,115620.0,0.423489]
[1755920269670,1.52208386,115630.0,115620.0,0.573349]
[1755920270470,1.52208386,115630.0,115620.0,0.330189]
[1755920273673,1.52208386,115630.0,115620.0,0.480049]
[1755920273872,1.52208386,115630.0,115620.0,0.330189]
[1755920274977,1.52208386,115630.0,115620.0,0.48568174]
[1755920275582,1.52208386,115630.0,115620.0,0.63554174]
[1755920275782,1.52208386,115630.0,115620.0,0.72884174]
[1755920279977,0.9314179,115630.0,115620.0,0.72884174]
[1755920280175,1.52208386,115630.0,115620.0,0.72884174]